bitfinex/quotes_ETHUSD_20250422
["timestamp","ask_amount","ask_price","bid_price","bid_amount"]
[1745348863775,11.57359766,1700.4,1700.0,0.8085]
[1745348863980,5.8813354,1700.3,1700.0,0.8085]
[1745348864501,11.57359766,1700.4,1700.0,0.8085]
[1745348864690,10.4210917,1700.4,1700.0,0.8085]
[1745348865297,11.49388639,1700.4,1700.0,0.8085]
[1745348865673,17.37513632,1700.4,1700.0,0.8085]
[1745348866502,11.49388639,1700.4,1700.0,0.8085]
[1745348866864,5.881464,1700.3,1700.0,0.8085]
[1745348867064,5.881464,1700.3,1699.8,9.44539308]
[1745348867065,5.88131506,1700.3,1699.8,5.89539308]
[1745348867266,5.88219984,1700.1,1699.8,0.8085]
[1745348867497,5.88215384,1700.1,1699.8,0.8085]
[1745348867861,11.7630228,1700.3,1699.8,0.8085]
[1745348868062,11.76304489,1700.3,1699.8,0.8085]
[1745348868273,7.70031159,1700.3,1699.8,0.8085]
[1745348869199,5.88178305,1700.2,1699.8,0.8085]
[1745348872498,7.70037121,1700.3,1699.9,0.55]
[1745348872799,7.70037121,1700.3,1699.9,5.639]
[1745348873310,5.88152626,1700.3,1700.0,0.8085]
[1745348873508,10.41994961,1700.7,1700.2,0.8085]
[1745348873811,10.41994961,1700.7,1700.3,5.089]
[1745348874308,4.5399099,1700.7,1700.3,5.089]
[1745348874518,4.5399099,1700.7,1700.4,1.3585]
[1745348874822,10.4199544,1700.7,1700.4,1.3585]
[1745348874982,4.5399099,1700.7,1700.4,1.3585]
[1745348875167,10.41985162,1700.7,1700.4,5.8975]
[1745348875366,4.5399099,1700.7,1700.4,5.8975]
[1745348876123,4.5399099,1700.7,1700.4,6.546225]
[1745348876310,4.5399099,1700.7,1700.5,5.89539308]
[1745348876600,4.5399099,1700.7,1700.4,6.546225]
[1745348876904,4.5399099,1700.7,1700.5,0.8323]
[1745348878203,10.6963177,1700.8,1700.5,0.8323]
[1745348878408,12.35388666,1700.8,1700.5,0.8323]
[1745348878611,18.23372115,1700.8,1700.5,0.8323]
[1745348879007,12.35388666,1700.8,1700.5,0.8323]
[1745348879212,18.2337994,1700.8,1700.5,0.8323]
[1745348879508,5.8799776,1700.7,1700.5,0.8323]
[1745348879808,5.88031025,1700.6,1700.4,5.089]
[1745348880409,7.70336403,1700.7,1700.4,5.089]
[1745348880736,7.70336403,1700.7,1700.3,0.8323]
[1745348880737,5.88031829,1700.6,1700.3,0.8323]
[1745348881242,1.82338643,1700.7,1700.3,6.72769308]
[1745348881901,7.70341281,1700.7,1700.3,6.72769308]
[1745348882337,6.65072901,1700.6,1700.3,0.8323]
[1745348882521,0.77034128,1700.6,1700.3,0.8323]
[1745348885746,6.65064653,1700.6,1700.3,0.8323]
[1745348886241,0.77034128,1700.6,1700.3,0.8323]
[1745348889112,6.65067144,1700.6,1700.3,0.8323]
[1745348889313,0.77034128,1700.6,1700.3,0.8323]
[1745348890349,0.7517,1700.5,1700.1,1.3322]
[1745348890518,5.88113511,1700.4,1700.1,0.5]
[1745348890719,7.58649369,1700.4,1700.1,0.5]
[1745348892078,7.58654522,1700.4,1700.1,1.3093]
[1745348892251,5.88150572,1700.3,1700.1,0.5]
[1745348892456,10.42141562,1700.3,1700.1,0.5]
[1745348893266,4.5399099,1700.3,1700.1,0.5]
[1745348893467,6.34067433,1700.3,1700.1,0.5]
[1745348894904,12.22199643,1700.3,1700.1,0.5]
[1745348895667,5.88166098,1700.2,1700.1,0.5]
[1745348895968,6.66886098,1700.2,1700.1,0.5]
[1745348898478,6.34067433,1700.3,1700.1,0.5]
[1745348898686,4.5399099,1700.5,1700.2,11.79269308]
[1745348898890,4.5399099,1700.7,1700.4,0.8093]
[1745348900055,4.5399099,1700.7,1700.4,6.70469308]
[1745348900254,4.5399099,1700.7,1700.4,5.89539308]
[1745348900453,4.5399099,1700.7,1700.5,0.8093]
[1745348902436,0.276593,1700.8,1700.6,10.98239308]
[1745348902592,0.276593,1700.8,1700.7,1.90753931]
[1745348909680,0.276593,1700.8,1700.7,11.40446601]
[1745348909938,0.276593,1700.8,1700.7,11.3456711]
[1745348910164,0.276593,1700.8,1700.7,11.40445211]
[1745348910767,0.0685264,1700.8,1700.7,11.3456711]
[1745348911068,0.0685264,1700.8,1700.7,17.3956711]
[1745348912299,0.0685264,1700.8,1700.7,22.4816711]
[1745348912805,0.0685264,1700.8,1700.7,22.91167021]
[1745348914509,4.5399099,1701.8,1701.4,0.55]
[1745348914705,4.5399099,1701.8,1701.4,12.0269108]
[1745348915314,4.5399099,1701.8,1701.6,7.26289308]
[1745348915722,5.3630099,1702.1,1701.6,7.32165423]
[1745348916079,5.3630099,1702.1,1701.6,7.26289308]
[1745348916382,5.3630099,1702.1,1701.6,8.33403138]
[1745348916383,11.23822965,1702.1,1701.6,8.33403138]
[1745348916903,17.11357031,1702.1,1701.6,8.33403138]
[1745348917080,11.23822965,1702.1,1701.6,8.33403138]
[1745348918217,5.3630099,1702.1,1701.6,8.33403138]
[1745348918419,5.3630099,1702.1,1701.7,0.05875778]
[1745348918596,5.3630099,1702.1,1701.8,5.085]
[1745348918953,4.5399099,1702.2,1702.0,5.89539308]
[1745348919220,12.50054617,1702.5,1702.0,5.89539308]
[1745348919221,4.5399099,1702.4,1702.1,0.8263]
[1745348919437,4.5399099,1702.4,1702.2,5.084]
[1745348919598,10.41413386,1702.4,1702.2,5.084]
[1745348919793,5.87440521,1702.3,1702.2,5.084]
[1745348920199,11.16690183,1702.4,1702.2,5.084]
[1745348920396,5.87521302,1702.1,1702.0,5.084]
[1745348922034,11.16673553,1702.4,1702.0,5.084]
[1745348922196,4.5399099,1702.4,1702.1,0.55]
[1745348922400,0.30648795,1702.7,1702.3,0.55]
[1745348922617,11.20117058,1702.8,1702.4,5.084]
[1745348923334,5.87302878,1702.7,1702.4,5.084]
[1745348923737,5.8735318,1702.6,1702.4,5.084]
[1745348924030,6.66242863,1702.5,1702.3,5.084]
[1745348924327,5.87406015,1702.4,1702.2,5.083]
[1745348924534,5.87440521,1702.3,1702.2,5.083]
[1745348926219,5.87440521,1702.3,1702.0,0.55]
[1745348926424,5.87528748,1702.1,1701.9,5.082]
[1745348927521,4.5399099,1702.2,1702.0,0.55]
[1745348927727,4.5399099,1702.2,1702.0,1.9081]
[1745348928244,4.5399099,1702.2,1702.0,4.9081]
[1745348928404,4.5399099,1702.2,1702.0,4.96684485]
[1745348928608,4.5399099,1702.2,1702.0,4.9081]
[1745348929831,4.5399099,1702.2,1702.0,4.96684618]
[1745348930155,4.5399099,1702.2,1702.0,0.05874618]
[1745348930359,4.5399099,1702.2,1702.0,5.082]
[1745348931020,5.87450854,1702.3,1702.0,5.082]
[1745348932257,10.41417263,1702.4,1702.0,5.082]
[1745348934820,4.5399099,1702.4,1702.1,1.3449]
[1745348935022,4.5399099,1702.4,1702.1,1.99346504]
[1745348935423,4.5399099,1702.4,1702.1,0.64856504]
[1745348935664,10.41420165,1702.4,1702.1,5.082]
[1745348936167,16.28859119,1702.4,1702.1,5.082]
[1745348936339,5.87470415,1702.3,1702.1,5.082]
[1745348936531,5.87475032,1702.2,1702.1,5.082]
[1745348937160,5.87475032,1702.2,1702.0,5.081]
[1745348937857,5.87470415,1702.3,1702.0,5.081]
[1745348938862,5.87492717,1702.2,1702.0,5.081]
[1745348940066,5.87509741,1702.1,1702.0,5.081]
[1745348940960,5.87459219,1702.3,1702.0,5.081]
[1745348942162,11.20257558,1702.4,1702.0,5.081]
[1745348942348,11.20257558,1702.4,1702.0,5.5891]
[1745348942658,10.41369532,1702.5,1702.1,0.8026]
[1745348946078,10.41369532,1702.5,1702.2,0.55]
[1745348946636,16.2877058,1702.5,1702.2,0.55]
[1745348948367,5.87409048,1702.4,1702.2,0.55]
[1745348949173,5.87409048,1702.4,1702.3,5.081]
[1745348949369,10.71995911,1702.6,1702.3,5.6441]
[1745348949571,16.59362812,1702.6,1702.4,0.8026]
[1745348949869,5.87371512,1702.5,1702.4,0.8026]
[1745348950073,5.87371512,1702.5,1702.3,5.081]
[1745348950244,5.87426819,1702.4,1702.3,5.081]
[1745348951843,11.7479043,1702.5,1702.3,5.081]
[1745348952577,5.87406015,1702.4,1702.3,5.081]
[1745348953081,5.87406015,1702.4,1702.2,0.55]
[1745348953242,5.87406015,1702.4,1702.2,5.631]
[1745348954771,5.87471461,1702.3,1702.0,1.2585]
[1745348955081,5.87491223,1702.2,1702.1,5.081]
[1745348955982,5.87491223,1702.2,1701.7,6.8004]
[1745348955983,5.87509547,1702.1,1701.7,6.8004]
[1745348956287,5.87647646,1701.7,1701.3,6.30903278]
[1745348956495,5.87647646,1701.7,1701.6,5.081]
[1745348956803,5.87741859,1701.5,1701.2,0.7504]
[1745348956950,5.87741859,1701.5,1701.3,5.081]
[1745348957283,5.87682641,1701.6,1701.2,9.49438544]
[1745348957575,5.87682641,1701.6,1701.2,6.49438544]
[1745348957881,12.55825115,1701.7,1701.2,12.37383981]
[1745348958049,11.75393912,1701.6,1701.2,12.37383981]
[1745348958379,5.87728718,1701.5,1701.2,6.49438544]
[1745348958947,11.75472982,1701.5,1701.2,6.49438544]
[1745348959142,5.87728718,1701.5,1701.2,6.49438544]
[1745348959363,5.87733017,1701.5,1701.2,6.49438544]
[1745348959877,5.87733017,1701.5,1701.2,1.41338544]
[1745348959878,5.87756982,1701.4,1701.2,1.41338544]
[1745348960082,5.87756982,1701.4,1701.3,5.082]
[1745348960273,5.87733017,1701.5,1701.3,5.082]
[1745348961083,5.87751263,1701.4,1701.3,5.082]
[1745348961280,11.7547791,1701.5,1701.3,5.082]
[1745348961879,5.87751263,1701.4,1701.2,1.41338544]
[1745348962082,5.87802325,1701.3,1701.2,5.082]
[1745348962249,5.87751263,1701.4,1701.1,0.55]
[1745348962449,5.87751263,1701.4,1701.2,5.082]
[1745348962650,11.75527362,1701.4,1701.2,5.082]
[1745348962850,11.75529492,1701.4,1701.2,5.082]
[1745348963079,5.8778581,1701.3,1701.2,5.082]
[1745348963300,5.87751263,1701.4,1701.2,5.082]
[1745348963505,11.75530024,1701.4,1701.2,5.082]
[1745348963814,5.8778581,1701.3,1701.2,5.082]
[1745348964799,5.87751263,1701.4,1701.2,5.082]
[1745348965298,11.75530897,1701.4,1701.2,5.082]
[1745348965994,5.87751263,1701.4,1701.2,5.082]
[1745348967152,5.8778581,1701.3,1701.1,0.55]
[1745348967358,5.87909167,1701.0,1700.7,0.7662]
[1745348967659,6.70479167,1701.0,1700.8,5.083]
[1745348967861,5.8792404,1700.9,1700.6,5.083]
[1745348968389,5.87959536,1700.8,1700.6,5.083]
[1745348968559,5.8792404,1700.9,1700.6,5.083]
[1745348968758,5.87971395,1700.8,1700.6,5.083]
[1745348969891,5.87971395,1700.8,1700.5,1.3162]
[1745348969892,11.75955304,1700.8,1700.5,3.7662]
[1745348970198,5.87993179,1700.7,1700.6,5.633]
[1745348970557,5.87993179,1700.7,1700.6,5.084]
[1745348971592,5.87974401,1700.8,1700.6,5.084]
[1745348971759,5.87993179,1700.7,1700.6,5.084]
[1745348973687,5.87974401,1700.8,1700.6,5.084]
[1745348973891,5.87927517,1700.9,1700.6,5.084]
[1745348973892,0.8257,1700.7,1700.6,5.084]
[1745348974051,6.70497517,1700.9,1700.6,5.084]
[1745348974253,14.43081207,1700.9,1700.6,5.084]
[1745348975793,8.55132071,1700.9,1700.6,5.084]
[1745348976587,0.8257,1700.9,1700.6,5.8502]
[1745348976969,6.70497561,1700.9,1700.6,5.8502]
[1745348977615,5.67230094,1701.1,1700.6,5.8502]
[1745348977754,11.24434299,1701.1,1700.6,5.8502]
[1745348980500,5.3656099,1701.1,1700.6,5.8502]
[1745348980694,11.24416278,1701.1,1700.7,0.58502]
[1745348982048,4.5399099,1701.1,1700.7,0.58502]
[1745348982248,4.5399099,1701.1,1700.8,1.43849218]
[1745348982519,5.3182099,1701.5,1700.8,10.31799098]
[1745348982705,4.5399099,1701.5,1701.3,0.8297]
[1745348982898,5.87659084,1701.7,1701.3,0.8297]
[1745348983899,11.75337991,1701.7,1701.3,0.8297]
[1745348984112,5.87689,1701.6,1701.3,0.8297]
[1745348985063,6.65519,1701.6,1701.3,0.8297]
[1745348985835,5.87667761,1701.7,1701.3,0.8297]
[1745348986304,6.65464878,1701.8,1701.3,1.72117]
[1745348986513,10.41585348,1701.9,1701.4,0.55]
[1745348987203,5.87616155,1701.8,1701.4,0.55]
[1745348987606,5.87649062,1701.7,1701.3,1.72117]
[1745348987997,5.87649062,1701.7,1701.4,5.084]
[1745348989143,11.75266061,1701.8,1701.4,5.084]
[1745348989441,11.75266061,1701.8,1701.3,0.8297]
[1745348989638,5.8762733,1701.8,1701.4,5.084]
[1745348989942,5.8762733,1701.8,1701.3,0.8297]
[1745348990106,5.8762733,1701.8,1701.4,5.084]
[1745348990508,5.8767142,1701.7,1701.4,5.084]
[1745348990838,6.6319142,1701.7,1701.3,5.9137]
[1745348991240,0.7552,1701.7,1701.3,5.9137]
[1745348991438,5.87628067,1701.8,1701.3,5.9137]
[1745348991599,7.58101847,1701.8,1701.3,5.9137]
[1745348992217,13.45743978,1701.8,1701.3,5.9137]
[1745348992566,10.41641492,1701.7,1701.3,5.9137]
[1745348992843,4.5399099,1701.7,1701.3,5.9137]
[1745348994343,10.41642824,1701.7,1701.3,5.9137]
[1745348994840,4.5399099,1701.7,1701.3,5.9137]
[1745348995220,4.5399099,1701.7,1701.3,6.86007]
[1745348996472,4.5399099,1701.7,1701.4,0.55]
[1745349002128,10.41639271,1701.7,1701.4,0.55]
[1745349003174,4.5399099,1701.7,1701.4,0.55]
[1745349006274,4.5399099,1701.7,1701.5,0.84676973]
[1745349006851,4.5399099,1701.7,1701.5,0.788]
[1745349007247,4.5399099,1701.7,1701.5,1.2218]
[1745349007448,4.5399099,1701.7,1701.5,0.788]
[1745349007973,4.5399099,1701.7,1701.6,0.55]
[1745349008142,5.3450099,1701.7,1701.3,1.74797]
[1745349008335,5.87726918,1701.5,1701.2,5.083]
[1745349008579,5.87692741,1701.6,1701.2,5.083]
[1745349008753,5.3450099,1701.7,1701.3,0.5083]
[1745349009754,5.3450099,1701.7,1701.4,1.3516]
[1745349009755,4.5399099,1701.7,1701.4,1.3516]
[1745349010157,4.5399099,1701.7,1701.4,4.3516]
[1745349010677,4.5399099,1701.7,1701.6,0.55]
[1745349010878,4.5399099,1702.0,1701.6,5.633]
[1745349011055,4.5399099,1702.0,1701.6,6.27646]
[1745349011790,4.5399099,1702.1,1701.8,0.55]
[1745349012077,5.3645099,1702.3,1701.9,5.87945437]
[1745349012254,5.3645099,1702.4,1702.0,5.8495]
[1745349012585,4.5399099,1702.4,1702.0,5.90824776]
[1745349012743,4.5399099,1702.4,1702.0,7.67458533]
[1745349013554,4.5399099,1702.4,1702.0,7.61583757]
[1745349013750,4.5399099,1702.4,1702.1,0.55]
[1745349015993,10.413733,1702.5,1702.1,0.55]
[1745349016177,10.413733,1702.5,1702.2,5.081]
[1745349017363,6.25110003,1702.5,1702.0,0.7675]
[1745349017559,6.25110003,1702.5,1702.2,5.081]
[1745349017560,6.69897908,1702.4,1702.2,5.081]
[1745349018804,0.8246,1702.4,1702.2,5.081]
[1745349019682,10.41378051,1702.5,1702.2,5.081]
[1745349019880,4.5399099,1702.5,1702.2,5.081]
[1745349020056,10.41369376,1702.5,1702.2,5.081]
[1745349020252,4.5399099,1702.5,1702.2,5.081]
[1745349021296,10.4138819,1702.5,1702.2,5.081]
[1745349022903,4.5399099,1702.5,1702.2,5.081]
[1745349023192,4.5399099,1702.7,1702.3,3.7675]
[1745349023791,10.4130866,1702.7,1702.3,3.7675]
[1745349024966,10.4130866,1702.7,1702.3,9.64695437]
[1745349024967,4.5399099,1702.7,1702.3,9.64695437]
[1745349025189,4.5399099,1702.8,1702.4,0.96469544]
[1745349025391,4.5399099,1702.8,1702.5,5.87945437]
[1745349025601,4.5399099,1702.8,1702.6,5.8475]
[1745349027604,4.5399099,1703.1,1702.6,5.8475]
[1745349028570,4.5399099,1703.1,1702.7,0.55]
[1745349028797,4.5399099,1703.1,1702.7,1.18975]
[1745349029169,10.41168464,1703.1,1702.7,1.18975]
[1745349029395,5.87215977,1703.0,1702.8,5.079]
[1745349029570,12.18689827,1703.0,1702.6,0.7675]
[1745349029766,6.67815973,1702.9,1702.7,5.079]
[1745349030000,0.8058,1702.9,1702.7,5.079]
[1745349030607,6.6781808,1702.9,1702.7,5.079]
[1745349030906,0.8058,1702.9,1702.7,5.079]
[1745349031411,4.5399099,1702.8,1702.2,1.2873]
[1745349031571,6.67897307,1702.7,1702.3,5.079]
[1745349031768,5.87342202,1702.6,1702.2,0.7792]
[1745349032009,16.28699735,1702.6,1702.3,5.079]
[1745349032181,5.87388096,1702.5,1702.2,0.7792]
[1745349032390,5.87388096,1702.5,1702.1,5.87945437]
[1745349032391,5.87388096,1702.5,1702.3,5.079]
[1745349033104,5.87408697,1702.4,1702.1,6.65865437]
[1745349033322,5.87388096,1702.5,1702.1,7.32451981]
[1745349033474,6.68014073,1702.4,1702.2,5.079]
[1745349033677,12.55451087,1702.4,1702.2,5.079]
[1745349033925,4.5399099,1702.3,1701.9,5.8582]
[1745349034096,10.41432244,1702.3,1701.9,5.8582]
[1745349034428,10.41432244,1702.3,1702.0,0.58582]
[1745349034626,4.5399099,1702.3,1702.0,0.58582]
[1745349034988,4.5399099,1702.3,1701.9,0.7792]
[1745349035191,10.41447598,1702.3,1702.0,5.079]
[1745349035691,5.87499914,1702.2,1702.0,5.079]
[1745349036912,10.41449732,1702.3,1702.1,5.079]
[1745349037093,4.5399099,1702.3,1702.1,5.079]
[1745349037287,4.5399099,1702.3,1702.1,5.5869]
[1745349037734,4.5399099,1702.3,1702.2,0.7792]
[1745349038295,4.5399099,1702.6,1702.2,0.7792]
[1745349038734,10.41344995,1702.6,1702.2,0.7792]
[1745349039225,6.67997283,1702.4,1702.0,0.7792]
[1745349039424,6.67965083,1702.5,1702.1,5.079]
[1745349040426,5.87408327,1702.4,1702.1,5.079]
[1745349040836,5.87408327,1702.4,1702.0,0.7792]
[1745349040994,5.8752278,1702.1,1702.0,5.079]
[1745349041195,6.6810278,1702.1,1702.0,5.079]
[1745349041625,5.874912,1702.2,1702.0,5.079]
[1745349042000,5.87509547,1702.1,1702.0,5.079]
[1745349042721,5.874912,1702.2,1702.1,3.0]
[1745349044344,4.5399099,1702.3,1702.1,4.5865]
[1745349045238,4.5399099,1702.3,1702.2,8.87945437]
[1745349045451,10.41365256,1702.5,1702.3,3.0]
[1745349046653,4.5399099,1702.5,1702.3,3.0]
[1745349046854,10.41366644,1702.5,1702.3,3.0]
[1745349047747,5.76775906,1702.6,1702.2,5.87945437]
[1745349047921,4.5399099,1702.6,1702.4,0.7786]
[1745349048245,10.41337236,1702.6,1702.2,6.65805437]
[1745349048744,10.41337236,1702.6,1702.3,5.078]
[1745349048956,5.87371858,1702.5,1702.3,5.078]
[1745349049343,10.41337236,1702.6,1702.3,5.078]
[1745349050154,4.5399099,1702.6,1702.3,5.078]
[1745349050339,4.5399099,1702.6,1702.3,6.25160544]
[1745349050533,4.5399099,1702.6,1702.4,6.65805437]
[1745349053150,10.4132889,1702.6,1702.3,5.078]
[1745349053346,4.5399099,1702.6,1702.3,5.078]
[1745349053549,4.5399099,1702.6,1702.3,6.25160544]
[1745349054226,4.5399099,1702.6,1702.4,5.87945437]
[1745349056150,4.5399099,1702.6,1702.3,6.25160544]
[1745349056965,10.41338087,1702.6,1702.3,6.25160544]
[1745349057354,4.5399099,1702.6,1702.3,6.25160544]
[1745349058658,4.5399099,1702.6,1702.4,0.62516054]
[1745349059430,4.5399099,1702.6,1702.5,0.7786]
[1745349059639,11.20351122,1702.8,1702.5,0.7786]
[1745349059831,17.07653422,1702.8,1702.4,5.87945437]
[1745349060189,17.07648367,1702.8,1702.4,5.87945437]
[1745349060318,5.87314966,1702.7,1702.4,5.87945437]
[1745349060514,17.07644054,1702.8,1702.4,5.87945437]
[1745349060715,5.87304771,1702.7,1702.4,5.87945437]
[1745349060953,11.20351122,1702.8,1702.2,5.87945437]
[1745349060954,5.8733891,1702.6,1702.2,5.87945437]
[1745349061171,11.2045567,1702.5,1701.9,0.7786]
[1745349061361,5.87529616,1702.1,1701.7,6.65805437]
[1745349061535,4.5399099,1702.1,1701.7,11.73605437]
[1745349062244,10.41502761,1702.1,1701.7,11.73605437]
[1745349063160,4.5399099,1702.1,1701.7,11.73605437]
[1745349063457,4.5399099,1702.1,1701.8,1.17360544]
[1745349063755,4.5399099,1702.1,1702.0,4.3286]
[1745349063920,4.5399099,1702.1,1702.0,10.20805437]
[1745349064630,4.5399099,1702.6,1702.2,0.55]
[1745349064936,4.5399099,1702.6,1702.3,11.73605437]
[1745349066422,10.41352998,1702.6,1702.3,5.078]
[1745349066755,5.87373192,1702.5,1702.3,5.078]
[1745349066957,10.41352998,1702.6,1702.3,5.078]
[1745349067156,16.28715982,1702.6,1702.3,5.078]
[1745349067365,12.12133596,1702.6,1702.3,5.078]
[1745349067677,5.87385737,1702.5,1702.3,5.078]
[1745349068773,5.87413774,1702.4,1702.1,6.65805437]
[1745349068945,6.66503774,1702.4,1702.2,5.078]
[1745349069136,5.87457341,1702.3,1702.0,5.078]
[1745349069321,11.20494764,1702.4,1702.0,6.25160544]
[1745349069735,17.07925755,1702.4,1702.0,6.25160544]
[1745349070061,5.87443701,1702.3,1702.0,5.078]
[1745349070446,5.87443701,1702.3,1702.1,5.078]
[1745349070848,17.07925738,1702.4,1702.1,5.078]
[1745349071048,5.87443621,1702.3,1702.1,5.078]
[1745349072078,11.20494764,1702.4,1702.1,5.078]
[1745349072455,17.07930634,1702.4,1702.1,5.078]
[1745349072976,5.3308099,1702.4,1702.1,5.078]
[1745349073157,11.20492714,1702.4,1702.1,5.078]
[1745349073555,5.3308099,1702.4,1702.1,5.078]
[1745349074077,4.5399099,1702.4,1702.2,0.8319]
[1745349074256,11.20587964,1702.7,1702.2,0.8319]
[1745349074460,11.20587964,1702.7,1702.3,5.87945437]
[1745349074659,5.87340568,1702.6,1702.2,0.8319]
[1745349074873,11.20587964,1702.7,1702.2,0.8319]
[1745349075221,17.07920133,1702.7,1702.2,2.11661544]
[1745349075383,11.20603121,1702.7,1702.3,5.078]
[1745349075551,5.87358381,1702.6,1702.3,5.078]
[1745349075891,11.20604583,1702.7,1702.3,5.078]
[1745349077382,5.87340277,1702.6,1702.3,5.078]
[1745349078896,5.87382402,1702.5,1702.3,5.078]
[1745349079893,5.87382402,1702.5,1702.1,6.38725437]
[1745349080099,5.87450958,1702.3,1702.2,5.077]
[1745349080281,6.66740958,1702.3,1702.2,5.077]
[1745349080802,0.7929,1702.3,1702.2,5.077]
[1745349081485,6.66675295,1702.5,1702.2,5.077]
[1745349081997,5.87406206,1702.4,1702.2,5.077]
[1745349082895,6.66675295,1702.5,1702.2,5.077]
[1745349083097,5.87344203,1702.6,1702.2,6.17264544]
[1745349083501,10.41335193,1702.6,1702.2,6.17264544]
[1745349083800,16.28697999,1702.6,1702.2,6.17264544]
[1745349083968,4.5399099,1702.6,1702.3,6.71135437]
[1745349084959,4.5399099,1702.6,1702.4,0.55]
[1745349085305,4.5399099,1702.6,1702.5,5.87945437]
[1745349089404,17.07776266,1702.9,1702.5,5.87945437]
[1745349089563,17.07776266,1702.9,1702.6,5.077]
[1745349089999,17.07776166,1702.9,1702.6,5.077]
[1745349090302,17.07776015,1702.9,1702.6,5.077]
[1745349090497,11.20516618,1702.9,1702.6,5.077]
[1745349090664,17.07775238,1702.9,1702.6,5.077]
[1745349090864,11.20516618,1702.9,1702.6,5.077]
[1745349092196,17.07776431,1702.9,1702.6,5.077]
[1745349092399,5.3328099,1702.9,1702.6,5.077]
[1745349092578,11.20529174,1702.9,1702.6,5.077]
[1745349093280,17.07788828,1702.9,1702.6,5.077]
[1745349093608,11.20529174,1702.9,1702.6,5.077]
[1745349094698,11.20529174,1702.9,1702.5,5.87945437]
[1745349094699,5.8726812,1702.8,1702.4,0.73200944]
[1745349094905,5.8726812,1702.8,1702.5,5.077]
[1745349095288,4.5399099,1702.8,1702.5,10.95645437]
[1745349095506,10.41270803,1702.8,1702.5,10.95645437]
[1745349098714,10.41270803,1702.8,1702.5,5.077]
[1745349098911,11.53326883,1702.8,1702.5,5.077]
[1745349100318,5.6604707,1702.8,1702.5,5.077]
[1745349100718,11.53319981,1702.8,1702.5,5.077]
[1745349102280,4.5399099,1702.8,1702.5,10.95645437]
[1745349102614,4.5399099,1702.8,1702.5,11.72055437]
[1745349103219,4.5399099,1702.9,1702.5,11.72055437]
[1745349104399,10.41228526,1702.9,1702.5,11.72055437]
[1745349104599,5.87291862,1702.8,1702.4,5.87945437]
[1745349104801,13.61961405,1702.8,1702.5,5.077]
[1745349104997,5.87304996,1702.7,1702.4,0.7641]
[1745349105320,7.74664715,1702.8,1702.5,5.076]
[1745349105907,1.87372853,1702.8,1702.5,5.076]
[1745349106111,7.74649798,1702.8,1702.5,5.076]
[1745349106922,12.28640788,1702.8,1702.5,5.076]
[1745349107491,6.41363843,1702.8,1702.5,5.076]
[1745349107888,12.28634784,1702.8,1702.5,5.076]
[1745349109251,6.41363843,1702.8,1702.5,5.076]
[1745349109801,12.28633415,1702.8,1702.5,5.076]
[1745349110539,7.10185205,1702.7,1702.3,0.7641]
[1745349110709,7.10185205,1702.7,1702.3,5.8391]
[1745349111301,12.97516083,1702.7,1702.3,5.8391]
[1745349111933,5.87340322,1702.6,1702.3,5.8391]
[1745349113137,5.87307229,1702.7,1702.3,11.71855437]
[1745349113335,5.87307229,1702.7,1702.3,12.94540981]
[1745349113835,5.87339403,1702.6,1702.3,12.94540981]
[1745349114042,11.74633991,1702.7,1702.3,12.94540981]
[1745349114212,5.87307229,1702.7,1702.3,12.94540981]
[1745349114538,5.87307229,1702.7,1702.4,5.075]
[1745349114739,5.67886397,1702.8,1702.4,6.36954098]
[1745349114937,4.5399099,1702.8,1702.6,0.7939]
[1745349116241,10.41266889,1702.8,1702.6,0.7939]
[1745349117545,4.5399099,1702.8,1702.6,0.7939]
[1745349122855,5.3407099,1702.8,1702.3,0.8312]
[1745349123072,5.87359612,1702.6,1702.3,5.075]
[1745349123353,5.87318285,1702.7,1702.3,5.9062]
[1745349123527,11.21353759,1702.8,1702.4,5.87945437]
[1745349123711,4.5399099,1702.8,1702.6,5.87945437]
[1745349124320,4.5399099,1702.8,1702.5,0.8312]
[1745349124734,4.5399099,1702.8,1702.5,1.80226544]
[1745349126339,4.5399099,1702.8,1702.5,0.8312]
[1745349132159,4.5399099,1702.8,1702.6,5.075]
[1745349135249,10.41262731,1702.8,1702.6,5.075]
[1745349136061,0.7667,1702.7,1702.4,5.87945437]
[1745349136260,7.7577591,1702.7,1702.5,5.075]
[1745349136463,6.63982637,1702.7,1702.5,5.075]
[1745349136674,0.7667,1702.7,1702.5,5.075]
[1745349137173,10.41262731,1702.8,1702.5,5.075]
[1745349137375,4.5399099,1702.8,1702.5,5.075]
[1745349139042,10.41259598,1702.8,1702.5,5.075]
[1745349139542,5.87315663,1702.7,1702.5,5.075]
[1745349141393,5.87372214,1702.5,1702.4,5.073]
[1745349141535,10.41372712,1702.5,1702.3,5.073]
[1745349141739,10.41372712,1702.5,1702.2,9.68275437]
[1745349141939,6.64076015,1702.4,1701.9,0.8033]
[1745349142197,5.87515699,1702.1,1701.8,0.8033]
[1745349142339,11.75005315,1702.2,1701.8,6.68275437]
[1745349142544,5.87511258,1702.1,1701.8,6.68275437]
[1745349142853,4.5399099,1702.3,1702.1,0.8033]
[1745349143242,4.5399099,1702.3,1702.1,5.8763]
[1745349143567,4.5399099,1702.3,1702.1,7.05187544]
[1745349143743,4.5399099,1702.3,1702.1,5.8763]
[1745349144978,5.87475032,1702.2,1701.9,0.8033]
[1745349145183,5.87475032,1702.2,1701.9,5.8773]
[1745349146080,11.18132288,1702.3,1701.9,5.8773]
[1745349146380,11.18132288,1702.3,1701.9,7.05885095]
[1745349146600,11.1812974,1702.3,1701.9,7.05885095]
[1745349146770,11.1812974,1702.3,1701.9,5.8773]
[1745349147519,4.5399099,1702.3,1701.9,5.8773]
[1745349147677,4.5399099,1702.3,1702.2,5.87945437]
[1745349147877,4.5399099,1702.7,1702.3,0.7908]
[1745349148082,4.5399099,1702.7,1702.4,5.074]
[1745349148083,10.41297228,1702.7,1702.4,5.074]
[1745349148380,4.5399099,1702.7,1702.4,5.66048]
[1745349148597,10.41298583,1702.7,1702.4,5.66048]
[1745349149263,4.5399099,1702.7,1702.4,5.66048]
[1745349150864,10.41311689,1702.7,1702.4,5.66048]